Cogmind - Beta 13 @@@ ROGUE MODE // 2024.04.05 @ 18:09:19 Player: Rocketboy Result: Destroyed by S-27 Virus with Autogun Performance ------------- Evolutions (4) 2000 Regions Visited (8) 1600 Robots Destroyed (27) 135 Value Destroyed (536) 536 Prototype IDs (3) 60 Alien Tech Used (0) 0 Bonus (500) 500 TOTAL SCORE: 4831 Bonus ------- Entered DSFs 500 Cogmind --------- Core Integrity 0/850 Matter 0/300 Energy 99/100 System Corruption 3% Temperature Cool (0) Movement Core (50) Location -6/Factory Parts ------- > --- POWER (2) -------- (None) > --- PROPULSION (6) --- (None) > --- UTILITY (5) ------ (None) > --- WEAPON (2) ------- (None) > --- INVENTORY (5) ---- Hybrid Deuterium Engine Improved Targeting Computer Utility Shielding Heavy Rocket Launcher Spear Peak State ------------ > --- POWER ------------ Light Ion Engine Nuclear Core > --- PROPULSION ------- VTOL Module Improved Flight Unit Improved Flight Unit Improved Flight Unit > --- UTILITY ---------- Weight Redist. System Hardened Light Armor Plating Drone Bay > --- WEAPON ----------- Improved Assault Rifle > --- INVENTORY -------- Light Ion Engine Improved Targeting Computer Utility Shielding Rocket Launcher [Rating: 27] Favorites ----------- Power Ion Engine Engine Ion Engine Power Core Nuclear Core Propulsion Improved Flight Unit Leg Aluminum Leg Flight Unit Improved Flight Unit Utility Weight Redist. System Device Weight Redist. System Storage Medium Storage Unit Protection Hardened Light Armor Plating Weapon Light Assault Rifle Energy Gun Beam Rifle Ballistic Gun Light Assault Rifle Launcher Rocket Launcher Special Weapon Mining Laser Build | -11 -10 -9 -9 -8 -8 -7 -7 -6 ------- Run | Yrd Mat Mat Min Mat Sto Fac DSF Fac Slots Evolved 8 | . . 2 . 2 . 2 . 2 Power 1 | . . . . 1 . . . . Propulsion 4 | . . 2 . . . 1 . 1 Utility 3 | . . . . 1 . 1 . 1 Weapon . | . . . . . . . . . Parts Attached 50 | 7 12 16 3 4 7 . . 1 Power 7 | 1 2 1 1 1 1 . . . Engine 6 | 1 2 1 1 . 1 . . . Core 1 | . . . . 1 . . . . Reactor . | . . . . . . . . . Propulsion 17 | 2 4 10 . . 1 . . . Treads . | . . . . . . . . . Leg 7 | 2 4 1 . . . . . . Wheel . | . . . . . . . . . Hover . | . . . . . . . . . Flight 10 | . . 9 . . 1 . . . Utility 11 | 1 3 1 . 3 2 . . 1 Device 5 | . 2 . . . 2 . . 1 Storage 3 | 1 1 . . 1 . . . . Processor . | . . . . . . . . . Hackware . | . . . . . . . . . Protection 3 | . . 1 . 2 . . . . Artifact . | . . . . . . . . . Weapon 15 | 3 3 4 2 . 3 . . . Energy Gun 1 | . 1 . . . . . . . Energy Cannon . | . . . . . . . . . Ballistic Gun 7 | 2 1 1 2 . 1 . . . Ballistic Cannon . | . . . . . . . . . Launcher 5 | . . 3 . . 2 . . . Special Weapon 2 | 1 1 . . . . . . . Impact Weapon . | . . . . . . . . . Slashing Weapon . | . . . . . . . . . Piercing Weapon . | . . . . . . . . . Special Melee Weapon . | . . . . . . . . . Unidentified Prototypes 3 | . . 1 1 . 1 . . . Parts Lost 10 | . 1 2 . 1 4 . 1 1 Power 3 | . . 1 . . 1 . 1 . Propulsion 3 | . . . . 1 1 . . 1 Utility 2 | . . . . . 2 . . . Weapon 2 | . 1 1 . . . . . . Highest Loss Streak 5 | . 1 2 . 1 4 . 5 1 To Critical Strikes . | . . . . . . . . . Average Slot Usage (%) 63 | . 96 89 97 91 67 23 15 5 Engine 7 | . 14 9 11 9 2 . . . Core 1 | . . . . 3 9 7 1 . Leg 8 | . 28 . . . . . . . Flight 15 | . . 43 44 34 26 15 13 3 Device 7 | . 11 11 11 9 13 . . 1 Storage 4 | . 14 5 . . . . . . Protection 3 | . . 2 11 18 8 . . . Ballistic Gun 10 | . 26 7 8 9 5 . . . Launcher 2 | . . 7 11 9 2 . . . Naked Turns 137 | . . . . . . . . 137 Heaviest Build 25 | 13 19 17 15 23 25 7 7 6 Greatest Support 26 | 20 26 25 21 25 25 10 10 5 Greatest Overweight (x) 1 | 1 . . . 1 1 . . 1 Average Overweight (x) . | . . . . . . . . . Largest Inventory Capacity 10 | 8 10 10 5 5 5 5 5 5 Average Capacity 6 | 7 9 7 5 5 5 5 5 5 Most Carried 10 | 3 10 10 5 4 5 5 5 5 Average Carried 5 | 1 6 6 4 3 4 5 5 4 Final Capacity 10 | 8 10 5 5 5 5 5 5 5 Final Carried 10 | 3 10 5 4 4 5 5 5 5 Class Distribution -------------------- 74% | Mutant 25% | Scavenger-Mutant Dominant Class ---------------- Scavenger-Mutant | -10/Materials Scavenger-Mutant | -9/Materials Mutant | -9/Mines Mutant | -8/Materials Mutant | -8/Storage Mutant | -7/Factory Mutant | -7/DSF Mutant | -6/Factory Resources | -11 -10 -9 -9 -8 -8 -7 -7 -6 ----------- Run | Yrd Mat Mat Min Mat Sto Fac DSF Fac Matter Collected 639 | 317 230 2 52 . 38 . . . Remotely . | . . . . . . . . . Salvage Created 704 | 76 472 86 15 15 40 . . . Parts 61 | 7 34 7 2 5 6 . . . Haulers Intercepted 2 | . 1 1 . . . . . . Recyclers Shooed . | . . . . . . . . . Parts Field Recycled . | . . . . . . . . . Retrieved Matter . | . . . . . . . . . Parts Self-Destructed . | . . . . . . . . . Prevented . | . . . . . . . . . Kills | -11 -10 -9 -9 -8 -8 -7 -7 -6 ------- Run | Yrd Mat Mat Min Mat Sto Fac DSF Fac Combat Hostiles Destroyed 18 | . 11 2 . 2 3 . . . Guns 11 | . 11 . . . . . . . AOE 7 | . . 2 . 2 3 . . . Classes Destroyed 8 | 2 4 1 . . 1 . . . Worker 1 | . 1 . . . . . . . Builder 1 | . . . . . 1 . . . Tunneler 3 | 1 . . 2 . . . . . Hauler 2 | . 1 1 . . . . . . Recycler 1 | 1 . . . . . . . . Operator 1 | . . 1 . . . . . . Swarmer 8 | . 3 . . 2 3 . . . Grunt 10 | . 8 2 . . . . . . Best Kill Streak 4 | 1 4 2 3 2 4 . . . Combat Bots Only 4 | . 4 2 . 2 3 . . . Max Kills in Single Turn 3 | 1 2 1 1 2 3 . . . Gunslinging 1 | . 1 . . . . . . . Exploded 3 | . . 1 . 2 3 . . . Melee . | . . . . . . . . . Uniques/NPCs Destroyed . | . . . . . . . . . Combat | -11 -10 -9 -9 -8 -8 -7 -7 -6 -------- Run | Yrd Mat Mat Min Mat Sto Fac DSF Fac Hostile Shots Fired 266 | . 60 28 . 23 42 . 28 85 Missed 116 | . 15 10 . 12 19 . 21 39 Damage Taken 2557 | . 476 362 . 231 456 . 162 870 Core 1312 | . 117 93 . 54 76 . 118 854 Absorbed by Shields . | . . . . . . . . . Core Remaining (%) 77 | 100 53 . 76 . 76 . 83 . Volleys Fired 66 | 15 29 12 2 1 7 . . . Largest 2 | 2 2 2 1 1 1 . . . Hottest 120 | 40 120 50 33 33 33 . . . Shots Fired 100 | 17 58 15 2 1 7 . . . Gun 86 | 17 57 6 . . 6 . . . Cannon . | . . . . . . . . . Launcher 13 | . . 9 2 1 1 . . . Special 1 | . 1 . . . . . . . Kinetic 86 | 17 57 6 . . 6 . . . Thermal 1 | . 1 . . . . . . . Explosive 13 | . . 9 2 1 1 . . . Electromagnetic . | . . . . . . . . . Robot Hit Streak 8 | 5 8 4 1 . 1 . . . Robot Miss Streak 4 | 2 3 3 1 1 4 . . . Penetration Max . | . . . . . . . . . Secondary Targets 1 | . 1 . . . . . . . Max Gunslinging Chain 1 | . 1 . . . . . . . Shots Hit Robots 63 | 12 40 8 1 . 2 . . . Core Hits 44 | 4 23 7 2 2 6 . . . Critical Kills . | . . . . . . . . . Critical Parts Destroyed . | . . . . . . . . . Critical Strikes . | . . . . . . . . . Melee Attacks . | . . . . . . . . . Impact . | . . . . . . . . . Slashing . | . . . . . . . . . Piercing . | . . . . . . . . . Sneak Attacks . | . . . . . . . . . Combat Hostiles . | . . . . . . . . . Follow-up Attacks . | . . . . . . . . . Damage Inflicted 1287 | 139 439 408 64 114 112 . . 11 Guns 632 | 139 439 24 . . 30 . . . Cannons . | . . . . . . . . . Explosions 644 | . . 384 64 114 82 . . . Melee . | . . . . . . . . . Ramming 11 | . . . . . . . . 11 Kinetic 632 | 139 439 24 . . 30 . . . Thermal . | . . . . . . . . . Explosive 644 | . . 384 64 114 82 . . . Electromagnetic . | . . . . . . . . . Impact . | . . . . . . . . . Slashing . | . . . . . . . . . Piercing . | . . . . . . . . . Highest Corruption 3 | . . . . . 1 . . 3 Average Corruption 2 | . . . . . 1 . . 2 Corruption Purged . | . . . . . . . . . Corruption Blocked . | . . . . . . . . . Effects 2 | . . . . . 1 . . 1 Matter Fused 1 | . . . . . . . . 1 Parts Rejected 1 | . . . . . 1 . . . Overload Shots . | . . . . . . . . . Overflow Damage 26 | . . 18 . 8 . . . . Projectiles . | . . . . . . . . . Explosions 26 | . . 18 . 8 . . . . Melee . | . . . . . . . . . Knockbacks . | . . . . . . . . . Impact . | . . . . . . . . . Kinetic . | . . . . . . . . . Secondary . | . . . . . . . . . Self-Inflicted Damage 277 | . . 116 . 48 108 . . 5 Shots 6 | . . 3 . 1 2 . . . Rammed 1 | . . . . . . . . 1 Targets Rammed 1 | . . . . . . . . 1 Kicked . | . . . . . . . . . Crushed . | . . . . . . . . . Highest Temperature 65 | . 32 18 8 65 38 . . . Average Temperature 19 | . 11 8 7 35 24 . . . Received Heat Transfer 552 | . 234 117 . 27 27 . . 147 Siege Activations . | . . . . . . . . . Robots Corrupted . | . . . . . . . . . Combat Hostiles . | . . . . . . . . . Parts Fried . | . . . . . . . . . Impact Corruptions . | . . . . . . . . . Robots Melted . | . . . . . . . . . Combat Hostiles . | . . . . . . . . . Parts Melted . | . . . . . . . . . Heat Transferred . | . . . . . . . . . Parts Sabotaged . | . . . . . . . . . Parts Stolen . | . . . . . . . . . Parts Stripped . | . . . . . . . . . Power Chain Reactions . | . . . . . . . . . Alert | -11 -10 -9 -9 -8 -8 -7 -7 -6 ------- Run | Yrd Mat Mat Min Mat Sto Fac DSF Fac Peak Influence 328 | 10 287 193 134 314 328 144 105 244 Initial 144 | . 6 120 75 52 132 144 100 54 Average 121 | 5 135 106 109 147 220 144 94 125 Maximum Alert Level 1 | . 1 . . 1 1 . . 1 Low Security (%) 81 | 100 71 100 100 62 53 100 100 77 Level 1 18 | . 28 . . 37 46 . . 22 Level 2 . | . . . . . . . . . Level 3 . | . . . . . . . . . Level 4 . | . . . . . . . . . Level 5 . | . . . . . . . . . High Security . | . . . . . . . . . Max Security . | . . . . . . . . . Squads Dispatched 17 | . 3 3 . 3 1 . 1 6 Investigation 9 | . 2 1 . 2 . . . 4 Extermination 1 | . . . . . . . . 1 Reinforcement 7 | . 1 2 . 1 1 . 1 1 Assault . | . . . . . . . . . Garrison . | . . . . . . . . . Intercept . | . . . . . . . . . Searches Triggered . | . . . . . . . . . Construction Impeded 1 | . . . . . 1 . . . Haulers Reinforced 1 | . . . . . . . . 1 Active Scanning Responses . | . . . . . . . . . Cargo Convoy Interrupts . | . . . . . . . . . Stealth | -11 -10 -9 -9 -8 -8 -7 -7 -6 --------- Run | Yrd Mat Mat Min Mat Sto Fac DSF Fac Distress Signals 1 | . . . . 1 . . . . Communications Jammed . | . . . . . . . . . Distress Signals . | . . . . . . . . . Times Spotted 83 | . 13 13 9 14 8 . 6 20 Peak Tracking Total 11 | . 5 6 8 11 5 . 6 7 Tactical Retreats 13 | . . . 3 2 1 . 1 6 Traps | -11 -10 -9 -9 -8 -8 -7 -7 -6 ------- Run | Yrd Mat Mat Min Mat Sto Fac DSF Fac Traps Triggered 2 | . . . . . 1 . . 1 Indirectly . | . . . . . . . . . Trap Hack Attempts . | . . . . . . . . . Triggered . | . . . . . . . . . Disarmed . | . . . . . . . . . Reprogrammed . | . . . . . . . . . Reused . | . . . . . . . . . Traps Extracted . | . . . . . . . . . Installed . | . . . . . . . . . Triggered . | . . . . . . . . . Machines | -11 -10 -9 -9 -8 -8 -7 -7 -6 ---------- Run | Yrd Mat Mat Min Mat Sto Fac DSF Fac Machines Disabled 8 | . . 5 . 1 2 . . . Max in Single Turn 3 | . . 3 . 1 1 . . . Machines Repaired . | . . . . . . . . . Machines Dismantled . | . . . . . . . . . Machines Sabotaged . | . . . . . . . . . Overloaded Fab Kills . | . . . . . . . . . Hacking | -11 -10 -9 -9 -8 -8 -7 -7 -6 --------- Run | Yrd Mat Mat Min Mat Sto Fac DSF Fac Machines Accessed 14 | . 2 2 1 2 1 1 . 5 Terminals 13 | . 2 2 1 1 1 1 . 5 Fabricators . | . . . . . . . . . Repair Stations . | . . . . . . . . . Recycling Units 1 | . . . . 1 . . . . Scanalyzers . | . . . . . . . . . Garrison Access . | . . . . . . . . . Total Hacks 38 | . 6 9 2 6 1 2 . 12 Successful 12 | . 2 3 . 3 1 1 . 2 Failed 26 | . 4 6 2 3 . 1 . 10 Catastrophic 3 | . . . 1 . . . . 2 Database Lockouts . | . . . . . . . . . Manual 16 | . 4 4 2 3 . . . 3 Terminals 35 | . 6 9 2 3 1 2 . 12 Fabricators . | . . . . . . . . . Repair Stations . | . . . . . . . . . Recycling Units 3 | . . . . 3 . . . . Scanalyzers . | . . . . . . . . . Garrison Access . | . . . . . . . . . Terminal Hacks 9 | . 2 3 . . 1 1 . 2 Robot Analysis 1 | . . 1 . . . . . . Open Door 1 | . . . . . 1 . . . Open DSF 2 | . . . . . . 1 . 1 Unreport Threat 1 | . . 1 . . . . . . Locate Traps 1 | . 1 . . . . . . . Hauler Manifests 1 | . . 1 . . . . . . Zone Layout 2 | . 1 . . . . . . 1 Fabricator Hacks . | . . . . . . . . . Repair Station Hacks . | . . . . . . . . . Recycling Unit Hacks 3 | . . . . 3 . . . . Recycle Component 1 | . . . . 1 . . . . Process 1 | . . . . 1 . . . . Retrieve Matter 1 | . . . . 1 . . . . Scanalyzer . | . . . . . . . . . Garrison Access Hacks . | . . . . . . . . . Unauthorized Hacks . | . . . . . . . . . Terminals . | . . . . . . . . . Fabricators . | . . . . . . . . . Repair Stations . | . . . . . . . . . Recycling Units . | . . . . . . . . . Scanalyzers . | . . . . . . . . . Garrison Access . | . . . . . . . . . Data Cores Recovered . | . . . . . . . . . Used . | . . . . . . . . . Hacking Detections 12 | . 2 2 1 2 . 1 . 4 Full Trace Events 10 | . 2 2 . 2 . . . 4 Feedback Events 1 | . . . . . . . . 1 Corruption 1 | . . . . . . . . 1 Feedback Blocked . | . . . . . . . . . Robot Schematics Acquired . | . . . . . . . . . Robots Built . | . . . . . . . . . Authchips . | . . . . . . . . . Time . | . . . . . . . . . Total Robot Build Rating . | . . . . . . . . . Part Schematics Acquired . | . . . . . . . . . Parts Built . | . . . . . . . . . Authchips . | . . . . . . . . . Time . | . . . . . . . . . Total Part Build Rating . | . . . . . . . . . Parts Repaired . | . . . . . . . . . Time . | . . . . . . . . . Parts Recycled 1 | . . . . 1 . . . . Recycled Matter 8 | . . . . 8 . . . . Retrieved Matter . | . . . . . . . . . Retrieved Components . | . . . . . . . . . Parts Scanalyzed . | . . . . . . . . . Part Schematics Acquired . | . . . . . . . . . Parts Damaged . | . . . . . . . . . Bothacking | -11 -10 -9 -9 -8 -8 -7 -7 -6 ------------ Run | Yrd Mat Mat Min Mat Sto Fac DSF Fac Used RIF Installer . | . . . . . . . . . Robots Hacked . | . . . . . . . . . Non-combat . | . . . . . . . . . Combat . | . . . . . . . . . Robot Hacks Applied . | . . . . . . . . . Relay Couplers Released . | . . . . . . . . . Fabnet Peak Effective % . | . . . . . . . . . Robots Rewired . | . . . . . . . . . Allies Hacked . | . . . . . . . . . Hacks Repelled . | . . . . . . . . . Allies | -11 -10 -9 -9 -8 -8 -7 -7 -6 -------- Run | Yrd Mat Mat Min Mat Sto Fac DSF Fac Total Allies . | . . . . . . . . . Largest Group . | . . . . . . . . . Highest-Rated Group . | . . . . . . . . . Highest-Rated Ally . | . . . . . . . . . Total Orders . | . . . . . . . . . Ally Attacks . | . . . . . . . . . Total Damage . | . . . . . . . . . Kills . | . . . . . . . . . Allies Corrupted . | . . . . . . . . . Allies Melted . | . . . . . . . . . Intel | -11 -10 -9 -9 -8 -8 -7 -7 -6 ------- Run | Yrd Mat Mat Min Mat Sto Fac DSF Fac Robot Analysis Total 1 | . . 1 . . . . . . Derelict Logs Recovered . | . . . . . . . . . Drone Launches 6 | . . . . . 4 . . 2 Drone Recoveries 1 | . . . . . 1 . . . Exploration | -11 -10 -9 -9 -8 -8 -7 -7 -6 ------------- Run | Yrd Mat Mat Min Mat Sto Fac DSF Fac Turns Passed 1226 | 106 325 146 117 64 92 18 43 315 Spaces Moved 1781 | 51 159 199 319 160 164 47 114 568 Core 277 | 5 . . . . . . . 272 Treads . | . . . . . . . . . Legs 205 | 46 159 . . . . . . . Wheels . | . . . . . . . . . Hover . | . . . . . . . . . Flight 1299 | . . 199 319 160 164 47 114 296 Fastest Speed 29 | 50 120 31 34 31 29 37 37 40 Average Speed 50 | 115 120 34 34 33 34 37 37 52 Slowest Speed 120 | 120 120 37 34 104 107 37 40 110 Overloaded Moves . | . . . . . . . . . Propulsion Burnouts . | . . . . . . . . . Robots Hopped 6 | . . . 1 . 3 . 1 1 Cave-ins Triggered . | . . . . . . . . . Exploration Rate (%) 29 | 4 31 30 44 18 33 2 79 22 Regions Visited 8 Branch Regions 2 Pre-discovered Areas . | . . . . . . . . . Known Exits Taken 1 | . . . . . . 1 . . Unknown Exits Taken 6 | 1 1 1 1 1 1 . . . Scrap Searched 1 | . . . 1 . . . . . Spaces Dug . | . . . . . . . . . Terrain Destroyed 104 | . 1 45 22 12 24 . . . Melee . | . . . . . . . . . Projectile 1 | . 1 . . . . . . . AOE 103 | . . 45 22 12 24 . . . Terrain Rammed . | . . . . . . . . . Walls Destroyed . | . . . . . . . . . Machines Disabled . | . . . . . . . . . Actions | -11 -10 -9 -9 -8 -8 -7 -7 -6 --------- Run | Yrd Mat Mat Min Mat Sto Fac DSF Fac Total 2009 | 81 238 262 324 167 191 49 112 585 Wait 49 | . 17 20 . 1 . . . 11 Move 1762 | 50 158 198 316 159 158 46 111 566 Hop 5 | . . . 1 . 2 . 1 1 Pick Up 35 | 9 13 2 . 1 7 1 . 2 Fast Attach 14 | . 3 7 . 1 2 . . 1 Attach 18 | 6 1 6 2 1 2 . . . Detach 7 | . . 3 1 1 2 . . . Swap 18 | 1 8 3 1 2 3 . . . Drop 34 | . 9 11 1 . 8 2 . 3 Fire 66 | 15 29 12 2 1 7 . . . Melee . | . . . . . . . . . Ram 1 | . . . . . . . . 1 Kick . | . . . . . . . . . Crush . | . . . . . . . . . Escape Stasis . | . . . . . . . . . Rewire . | . . . . . . . . . Trap . | . . . . . . . . . Miscellaneous . | . . . . . . . . . Route ------- -11/Scrapyard -10/Materials -9/Materials -9/Mines -8/Materials -8/Storage -7/Factory -7/DSF -6/Factory History --------- Turn | Location | Event 2 | -11/Scrapyard | Met Revision 17 5 | -11/Scrapyard | Discovered new exit (range 15) 107 | -11/Scrapyard | Entered Materials 255 | -10/Materials | Discovered new exit (range 19) 432 | -10/Materials | Entered another Materials area 432 | -9/Materials | Evolved 2 slots: Propulsion x2 528 | -9/Materials | Build established: Scavenger-Mutant 551 | -9/Materials | Discovered new exit (range 15) 578 | -9/Materials | Entered Mines 627 | -9/Mines | Assembled infested the area 632 | -9/Mines | Assisted by a Guerilla fighting off Assembled 691 | -9/Mines | Discovered new exit (range 9) 695 | -9/Mines | Entered Materials 695 | -8/Materials | Evolved 2 slots: Power x1, Utility x1 754 | -8/Materials | Discovered new exit (range 13) 759 | -8/Materials | Entered Storage 839 | -8/Storage | Discovered new exit (range 9) 851 | -8/Storage | Entered Factory 851 | -7/Factory | Evolved 2 slots: Propulsion x1, Utility x1 868 | -7/Factory | Identified exit to DSF 869 | -7/Factory | Entered DSF 875 | -7/DSF | Build established: Mutant 895 | -7/DSF | Additional patrols routed to DSF 905 | -7/DSF | Discovered new exit (range 16) 907 | -7/DSF | Lost 5 parts (2p1n2u) 912 | -7/DSF | Entered Factory 912 | -6/Factory | Evolved 2 slots: Propulsion x1, Utility x1 1184 | -6/Factory | Core integrity fell below 50% 1195 | -6/Factory | Core integrity fell below 20% 1227 | -6/Factory | Destroyed by S-27 Virus with Autogun Last Messages --------------- Connecting with Terminal... You are not limited to hacking targets listed on a Terminal. Any hack can be entered via the Manual option at the bottom, simply start typing and use autocomplete if desired (Up/Down/Tab/Enter). So-called indirect hacking has a lower chance of success, and is described in more detail in the manual. Feedback: System corruption (+1%). ALERT: Suspicious activity at Terminal F009. Dispatching Investigation squad. System corrupted: Matter fused (-9). Triggered Heavy Explosive Trap. An explosion rips through the floor. U-05 Engineer lays Concrete. ALERT: Rogue bot located, Programmers report to Factory Zone 1P. U-05 Engineer lays Concrete. Connecting with DSF Access... S-27 Virus destroyed. Map ----- +----------------------------------------------------+ | ????""""" ################??????????????? | | ??? ####+#####?????? | | ??? #?????? | | ???? #?????? | | ???? #?????? | | ????? #?????? | | ????? " " " " " " " " " " " " " #?????? | | ??????" " " " " " " " " " " " " #?????? | | ??????? " " " " " " " " " " " " #?????? | | ????????? " " " " " " " " " " " #?????? | | ??????????"?" " " " " " " " " " ##% #?????? | | ????????????"?"?" " " " " " " " ## #?????? | | ????????????????" " " " " " " " ## #?????? | | ????????????????" " " " " " " " ## #?????? | | ??????????????????" " " " " " " ## +?????? | | ??????????????????? ? ## #?????? | | ??????????????????? ? ? ## #?????? | | ?????????????????????????########### #?????? | | ???????????????????????????????????# #?????? | | ????????????????????################ #?????? | | ????????????????????# !# #?????? | | ????????????????????# """" g # #?????? | | ????????????????????# """" "" "" / #?????? | | ????????????????????# """" ""S"" # #?????? | | ????????????????????# """" """" # #?????? | | ????????????????????#/ s@s /# #?????? | | ????????????????????################ #?????? | | ???????????????????????????????########/########?? | | ???????????????????????????????# #?? | | ???????????????????????????????# #?? | | ???????????????????????????????# """"" """"" #?? | | ???????????????????????????????# """"" """"" #?? | | ???????????????????????????????# """ """ #?? | | ???????????????????????????????# #?? | | ???????????????????????????????# """"" """"" #?? | | ???????????????????????????????# """"" """"" #?? | | ???????????????????????????????# """ """ #?? | | ???????????????????????????????# #?? | | ???????????????????????????????#################?? | | | | | | | | | | | | | | | | | | | | | | | +----------------------------------------------------+ Best States ------------- Heat Dissipation 37 Energy Generation 19 Energy Capacity 265 Matter Stores 300 Matter Capacity 300 Sight Range 16 Terrain Scan Density 10 Additional Mass Support 6 Armor Coverage 150 Utility Shielding 33 Evasion (%) 64 Item Schematics ----------------- None Robot Schematics ------------------ None Fabricated ------------ Nothing Alien Tech Used ----------------- None Achievements -------------- None Challenges ------------ None Game ------ Seed GatlingAntimissileWheel Manual? 0 Play Time 00:36:12 Cumulative 13.6 hours Start 2024.04.05 @ 17:31:37 End 2024.04.05 @ 18:09:19 Sessions 1 Manual Loads 0 Difficulty Rogue Special Mode None Game No. 29 Rogue 29 Adventurer 0 Explorer 0 Win Type - Total 0 Types 0/0/0/0/0/0/0/0/0 Lore% 18 Gallery% 18 Achievement% 17 Wizard Run 0 Options --------- Layout 1 ASCII 0 Keyboard 0 Movement Mouse Keybinds 0 Fullscreen 1 Font 32/SmallcapsGlow Map View 50x35 Zoom Use 0% Tactical HUD 0 Map Filters NONE Filters NONE Steam 1 RUN: 550a4a75-2ea1-44ac-8356-5466b64cadd5